bitfinex/quotes_SOLUSD_20260310
["timestamp","ask_amount","ask_price","bid_price","bid_amount"]
[1773156229378,11.39354441,87.769,87.743,0.47861023]
[1773156229779,11.39354441,87.769,87.728,0.47861023]
[1773156229780,10.71070755,87.76,87.728,0.47861023]
[1773156229980,10.71070755,87.76,87.72,28.49945848]
[1773156229981,10.71070755,87.76,87.73,0.47861023]
[1773156231901,10.71070755,87.75,87.717,0.47861023]
[1773156232409,10.71070755,87.74,87.716,11.40042865]
[1773156232703,10.71070755,87.74,87.7,10.71070755]
[1773156232704,10.71070755,87.74,87.708,0.47861023]
[1773156233715,11.39484269,87.759,87.723,0.47861023]
[1773156234006,0.49507606,87.781,87.731,0.47861023]
[1773156234007,10.71070755,87.77,87.731,0.47861023]
[1773156234209,11.39242562,87.778,87.741,0.47861023]
[1773156235008,22.10290262,87.78,87.741,0.47861023]
[1773156235198,10.71070755,87.78,87.741,0.47861023]
[1773156235398,11.39224643,87.779,87.741,0.47861023]
[1773156235700,11.39094875,87.789,87.753,0.47861023]
[1773156236500,11.39042538,87.794,87.761,0.47861023]
[1773156237598,10.71070755,87.79,87.761,0.47861023]
[1773156237806,11.39094875,87.789,87.761,0.47861023]
[1773156238197,39.86832063,87.789,87.761,11.87309862]
[1773156238512,11.39039814,87.794,87.762,0.47861023]
[1773156238705,11.20578361,87.81,87.771,0.47861023]
[1773156239310,11.3886578,87.807,87.771,0.47861023]
[1773156239511,10.71070755,87.8,87.771,0.47861023]
[1773156239702,11.39094875,87.789,87.762,0.47861023]
[1773156239891,11.39094875,87.789,87.763,11.39432334]
[1773156240297,11.39094875,87.789,87.764,0.47861023]
[1773156240627,0.49507606,87.779,87.741,0.47861023]
[1773156241309,0.49507606,87.779,87.742,0.47861023]
[1773156241507,10.71070755,87.77,87.742,0.47861023]
[1773156241708,10.71070755,87.77,87.743,11.39692055]
[1773156242623,0.49507606,87.769,87.731,0.47861023]
[1773156242804,10.71070755,87.77,87.731,0.47861023]
[1773156243321,10.71070755,87.79,87.751,0.47861023]
[1773156243623,11.18100503,87.79,87.751,0.47861023]
[1773156243832,11.18100503,87.79,87.753,0.47861023]
[1773156243833,10.68592897,87.78,87.753,0.47861023]
[1773156244115,11.18100503,87.78,87.744,11.39679066]
[1773156244313,39.86832063,87.789,87.725,11.39925904]
[1773156244314,10.68592897,87.76,87.725,11.39925904]
[1773156244627,10.68592897,87.75,87.714,0.47861023]
[1773156245806,11.39614126,87.749,87.716,0.47861023]
[1773156246118,22.07934357,87.77,87.731,0.47861023]
[1773156247120,10.68592897,87.76,87.731,0.47861023]
[1773156247423,22.07934357,87.77,87.731,0.47861023]
[1773156247714,10.68592897,87.76,87.731,0.47861023]
[1773156247926,10.68592897,87.76,87.733,0.47861023]
[1773156249026,22.08066034,87.76,87.733,0.47861023]
[1773156249406,10.68592897,87.76,87.733,0.47861023]
[1773156250112,10.68592897,87.76,87.735,0.47861023]
[1773156250923,0.49507606,87.758,87.714,0.47861023]
[1773156251223,0.49507606,87.758,87.713,11.40081857]
[1773156251224,11.39367423,87.768,87.731,0.47861023]
[1773156252132,11.39367423,87.768,87.733,0.47861023]
[1773156252626,10.68592897,87.76,87.733,0.47861023]
[1773156252823,11.39367423,87.768,87.733,0.47861023]
[1773156254318,11.88875029,87.768,87.734,11.39808968]
[1773156254523,11.88875029,87.768,87.735,0.47861023]
[1773156255014,0.49507606,87.767,87.735,0.47861023]
[1773156256116,11.39367423,87.768,87.735,0.47861023]
[1773156256314,10.68592897,87.77,87.741,0.47861023]
[1773156256518,11.39354441,87.769,87.741,0.47861023]
[1773156257719,10.68592897,87.79,87.751,0.47861023]
[1773156258029,11.39094875,87.789,87.751,0.47861023]
[1773156258838,11.39094875,87.789,87.753,0.47861023]
[1773156259334,0.49296354,87.779,87.744,11.86421973]
[1773156259539,10.68592897,87.77,87.744,0.46752262]
[1773156260933,11.39354441,87.769,87.744,0.46752262]
[1773156261634,10.68592897,87.78,87.746,0.46752262]
[1773156262022,11.39237622,87.778,87.746,0.46752262]
[1773156262222,11.39237622,87.778,87.751,0.46752262]
[1773156262738,11.39120826,87.787,87.751,0.46752262]
[1773156263036,10.68592897,87.78,87.752,0.46752262]
[1773156264017,39.86922892,87.787,87.752,0.46752262]
[1773156266122,11.39224643,87.779,87.752,0.46752262]
[1773156266945,11.39224643,87.779,87.754,0.46752262]
[1773156268238,11.39224643,87.779,87.755,11.39536208]
[1773156268541,11.39224643,87.779,87.756,0.46752262]
[1773156268732,0.49296354,87.778,87.746,0.46752262]
[1773156268939,0.49296354,87.778,87.736,28.49442825]
[1773156268940,11.17889251,87.77,87.738,0.46752262]
[1773156269142,11.17889251,87.77,87.737,11.39769994]
[1773156269143,0.49296354,87.778,87.741,0.46752262]
[1773156269927,0.49296354,87.769,87.736,0.46752262]
[1773156270131,10.68592897,87.76,87.736,0.46752262]
[1773156270327,0.49296354,87.749,87.713,11.40081857]
[1773156270532,0.49296354,87.749,87.714,0.46752262]
[1773156270944,10.68592897,87.75,87.714,0.46752262]
[1773156271151,0.49296354,87.749,87.716,0.46752262]
[1773156271444,10.68592897,87.74,87.716,0.46752262]
[1773156271643,10.68592897,87.74,87.7,10.68592897]
[1773156271644,0.49296354,87.739,87.701,11.40237853]
[1773156271834,11.17889251,87.73,87.702,0.46752262]
[1773156272434,10.68592897,87.73,87.704,0.46752262]
[1773156272937,0.74608645,87.767,87.711,0.46752262]
[1773156272938,10.68592897,87.75,87.711,0.46752262]
[1773156273164,10.68592897,87.74,87.711,0.46752262]
[1773156274751,11.39744013,87.739,87.713,0.46752262]
[1773156275449,28.48588656,87.763,87.713,0.46752262]
[1773156275662,10.68592897,87.76,87.721,0.46752262]
[1773156275832,11.39385712,87.767,87.731,0.46752262]
[1773156276151,10.68592897,87.76,87.731,0.46752262]
[1773156278151,11.39484269,87.759,87.733,0.46752262]
[1773156279030,11.39439989,87.763,87.733,0.46752262]
[1773156279754,10.68592897,87.76,87.733,0.46752262]
[1773156280449,11.39439989,87.763,87.735,0.46752262]
[1773156282553,10.68592897,87.77,87.73,10.68592897]
[1773156282554,11.39354441,87.769,87.737,0.46752262]
[1773156283051,0.49296354,87.768,87.737,0.46752262]
[1773156283556,3.99153061,87.76,87.737,0.46752262]
[1773156283758,0.49296354,87.768,87.737,0.46752262]
[1773156283959,4.48449415,87.75,87.717,0.46752262]
[1773156284150,4.48449415,87.75,87.719,0.46752262]
[1773156284462,4.48449415,87.75,87.722,11.86717151]
[1773156284961,3.99153061,87.75,87.724,0.46752262]
[1773156285260,11.39571806,87.753,87.724,0.46752262]
[1773156286137,11.39515995,87.757,87.724,0.46752262]
[1773156287060,11.39515995,87.757,87.726,0.4796876]
[1773156287958,11.39515995,87.757,87.728,0.4796876]
[1773156288201,0.47048031,87.756,87.727,62.8]
[1773156288466,0.47048031,87.756,87.728,0.4796876]
[1773156288642,11.39515995,87.757,87.728,0.4796876]
[1773156288840,0.74608645,87.788,87.731,0.4796876]
[1773156288841,11.39390693,87.767,87.731,0.4796876]
[1773156289544,0.49783002,87.766,87.732,11.39834951]
[1773156289752,3.99153061,87.75,87.723,11.39950088]
[1773156290070,0.49783002,87.749,87.723,11.39950088]
[1773156290569,3.99153061,87.75,87.724,0.46418153]
[1773156291247,0.49783002,87.759,87.724,0.46418153]
[1773156291449,11.39399564,87.766,87.726,0.46418153]
[1773156291651,3.99153061,87.77,87.731,0.46418153]
[1773156291855,11.39354441,87.769,87.731,0.46418153]
[1773156292162,11.39108822,87.788,87.751,0.46418153]
[1773156292647,11.88891824,87.788,87.751,0.46418153]
[1773156293444,0.49783002,87.779,87.751,0.46418153]
[1773156294554,11.39237622,87.778,87.751,0.46418153]
[1773156294885,10.68783453,87.79,87.753,0.46418153]
[1773156295047,11.39094875,87.789,87.753,0.46418153]
[1773156295358,39.86832063,87.789,87.753,0.46418153]
[1773156295568,0.49783002,87.788,87.753,0.46418153]
[1773156296265,10.68783453,87.78,87.753,0.46418153]
[1773156296865,11.39120826,87.787,87.755,0.46418153]
[1773156297056,11.88903828,87.787,87.755,0.46418153]
[1773156297256,40.36705894,87.787,87.755,0.46418153]
[1773156297458,0.49783002,87.786,87.755,0.46418153]
[1773156298075,0.74608645,87.806,87.761,0.46418153]
[1773156298250,45.52984405,87.855,87.771,0.46418153]
[1773156298251,11.38887307,87.805,87.771,0.46418153]
[1773156298450,10.68783453,87.8,87.771,0.46418153]
[1773156299071,11.38965136,87.799,87.772,11.39315499]
[1773156299292,11.38965136,87.799,87.772,11.85733652]
[1773156300557,11.38965136,87.799,87.773,0.46418153]
[1773156300752,11.38965136,87.799,87.755,1.1395362]
[1773156300753,0.49783002,87.789,87.748,0.46418153]
[1773156300959,0.49783002,87.789,87.751,0.46418153]
[1773156301159,11.3910785,87.788,87.753,0.46418153]
[1773156301550,10.68783453,87.8,87.761,0.46418153]
[1773156301750,11.38991081,87.797,87.761,0.46418153]
[1773156302472,0.49783002,87.796,87.761,0.46418153]
[1773156302967,10.68783453,87.79,87.761,0.46418153]
[1773156303272,10.68783453,87.8,87.763,0.46418153]
[1773156303471,10.68783453,87.82,87.781,0.46418153]
[1773156303654,53.21793215,87.874,87.781,0.46418153]
[1773156303655,0.74608645,87.857,87.811,0.46418153]
[1773156303968,0.2,87.88,87.841,0.46418153]
[1773156304166,0.2,87.88,87.861,0.46418153]
[1773156304470,0.2,87.89,87.86,10.68783453]
[1773156305052,0.2,87.89,87.83,10.68783453]
[1773156305053,0.49783002,87.869,87.83,10.68783453]
[1773156305274,10.68783453,87.87,87.831,11.3855017]
[1773156305567,11.3801392,87.873,87.84,10.66319058]
[1773156306273,11.3801392,87.873,87.841,0.46418153]
[1773156306785,10.66319058,87.85,87.82,0.46418153]
[1773156307461,11.38316884,87.849,87.82,0.46418153]
[1773156307859,0.49783002,87.829,87.781,1.13919868]
[1773156308062,0.49783002,87.819,87.79,10.66319058]
[1773156308274,0.49783002,87.829,87.79,10.66319058]
[1773156308665,10.66319058,87.82,87.781,11.39192329]
[1773156308867,10.66319058,87.82,87.78,10.66319058]
[1773156308868,11.1610206,87.82,87.78,10.66319058]
[1773156309368,11.1610206,87.82,87.78,22.05527116]
[1773156309563,0.49783002,87.809,87.771,1.13932847]
[1773156309764,0.49783002,87.809,87.766,11.39390398]
[1773156309765,0.49783002,87.789,87.75,10.66319058]
[1773156309987,0.74608645,87.809,87.746,15.37550408]
[1773156309988,10.66319058,87.77,87.746,15.37550408]
[1773156310289,11.1610206,87.76,87.72,0.46418153]
[1773156310470,0.49783002,87.759,87.73,10.66319058]
[1773156310658,11.1610206,87.77,87.731,0.46418153]
[1773156310858,10.66319058,87.78,87.741,0.46418153]
[1773156311072,0.49783002,87.779,87.741,0.46418153]
[1773156311487,0.74608645,87.809,87.73,11.12737211]
[1773156311488,0.49783002,87.769,87.73,11.12737211]
[1773156311693,0.49783002,87.767,87.731,39.89467804]
[1773156311862,22.55322201,87.78,87.741,0.46418153]
[1773156312182,0.49783002,87.769,87.731,11.86266097]
[1773156312383,0.49783002,87.769,87.732,0.46418153]
[1773156312877,22.05539199,87.78,87.741,0.46418153]
[1773156313183,0.49783002,87.769,87.731,11.39847944]
[1773156313357,10.66319058,87.76,87.731,11.39847944]
[1773156313760,0.49783002,87.789,87.75,10.66319058]
[1773156313961,0.49783002,87.789,87.751,0.46418153]
[1773156314160,11.88748138,87.799,87.761,0.46418153]
[1773156314579,0.49783002,87.798,87.761,0.46418153]
[1773156315074,0.49783002,87.789,87.751,0.46418153]
[1773156315984,0.49783002,87.769,87.734,0.46418153]
[1773156316169,10.66319058,87.78,87.741,0.46418153]
[1773156316688,10.66319058,87.78,87.742,0.46418153]
[1773156316860,0.49783002,87.787,87.742,0.46418153]
[1773156317060,10.66319058,87.78,87.742,0.46418153]
[1773156317478,10.66319058,87.77,87.742,0.46418153]
[1773156317876,0.49783002,87.779,87.744,0.46418153]
[1773156318080,11.39224643,87.779,87.744,0.46418153]
[1773156318480,10.66319058,87.78,87.744,0.46418153]
[1773156318686,11.39116722,87.788,87.751,0.46418153]
[1773156318889,10.66319058,87.78,87.743,39.88922193]
[1773156319096,11.13790138,87.77,87.731,28.49616083]
[1773156319270,11.13790138,87.77,87.732,11.86206432]
[1773156319472,0.4747108,87.77,87.733,0.46371481]
[1773156319771,0.4747108,87.77,87.711,3.69383402]
[1773156319772,0.4747108,87.759,87.727,11.39891386]
[1773156319974,0.4747108,87.759,87.714,0.46371481]
[1773156319975,10.66319058,87.78,87.741,0.46371481]
[1773156320203,22.05537859,87.78,87.741,0.46371481]
[1773156320694,0.4747108,87.783,87.75,10.66319058]
[1773156320891,10.66319058,87.78,87.75,0.46371481]
[1773156321068,0.4747108,87.793,87.76,10.66319058]
[1773156321262,0.4747108,87.793,87.761,0.46371481]
[1773156321484,11.39015103,87.796,87.761,0.46371481]
[1773156322091,11.39015103,87.796,87.76,10.66319058]
[1773156322092,0.4747108,87.789,87.76,10.66319058]
[1773156322280,0.4747108,87.789,87.752,0.46371481]
[1773156324286,10.66319058,87.78,87.753,11.3956218]
[1773156324594,0.4747108,87.779,87.74,10.66319058]
[1773156324792,0.4747108,87.779,87.74,11.12690539]
[1773156325093,0.4747108,87.779,87.741,0.46371481]
[1773156326689,11.39237622,87.778,87.742,11.86076525]
[1773156326995,11.39237622,87.778,87.743,0.46371481]
[1773156327473,0.4747108,87.777,87.743,0.46371481]
[1773156328806,0.4747108,87.777,87.75,10.66319058]
[1773156329096,0.74608645,87.814,87.75,10.66319058]
[1773156329097,10.66319058,87.79,87.751,0.46371481]
[1773156329303,10.66319058,87.82,87.781,0.46371481]
[1773156329533,10.66319058,87.81,87.78,11.12690539]
[1773156329691,10.66319058,87.8,87.769,0.46371481]
[1773156329886,10.66319058,87.81,87.77,10.66319058]
[1773156330108,10.66319058,87.81,87.771,0.46371481]
[1773156330418,10.66319058,87.82,87.781,0.46371481]
[1773156330796,10.66319058,87.81,87.781,0.46371481]
[1773156331192,11.38835426,87.809,87.781,0.46371481]
[1773156331513,11.38835426,87.809,87.782,11.3918571]
[1773156332692,11.86306506,87.809,87.782,11.3918571]
[1773156334300,0.4747108,87.809,87.782,11.3918571]
[1773156334590,0.4747108,87.829,87.791,0.46371481]
[1773156334995,0.4747108,87.829,87.8,10.66319058]
[1773156335604,11.38446475,87.839,87.811,0.46371481]
[1773156335804,0.4747108,87.84,87.82,10.66319058]
[1773156335991,11.38376362,87.845,87.813,0.46371481]
[1773156336501,0.4747108,87.839,87.807,11.38858218]
[1773156336699,11.85792264,87.849,87.82,10.66319058]
[1773156336901,0.4747108,87.862,87.831,0.46371481]
[1773156337103,0.4747108,87.859,87.82,10.66319058]
[1773156337999,0.4747108,87.857,87.83,10.66319058]
[1773156338314,11.38187322,87.859,87.831,0.46371481]
[1773156338514,0.4747108,87.866,87.831,0.46371481]
[1773156338691,7.03212304,87.869,87.84,11.12690539]
[1773156338896,10.66319058,87.86,87.83,0.46371481]
[1773156339103,0.4747108,87.867,87.831,0.46371481]
[1773156340117,0.4747108,87.867,87.83,10.66319058]
[1773156340118,11.38096647,87.866,87.833,0.46371481]
[1773156340409,0.4747108,87.867,87.84,10.66319058]
[1773156340607,0.4747108,87.866,87.832,11.38537207]
[1773156340810,0.4747108,87.866,87.832,11.84908688]
[1773156340997,0.4747108,87.866,87.833,0.46371481]
[1773156342107,7.03212304,87.869,87.851,0.46371481]
[1773156342311,10.86319058,87.89,87.834,39.84789488]
[1773156342312,11.57797349,87.89,87.861,0.46371481]
[1773156342513,0.4747108,87.879,87.84,10.66319058]
[1773156343018,0.4747108,87.869,87.84,10.66319058]
[1773156343718,0.4747108,87.869,87.841,0.46371481]
[1773156344305,0.4747108,87.869,87.842,11.38407595]
[1773156344810,11.8543235,87.877,87.843,0.46371481]
[1773156345119,0.4747108,87.876,87.843,0.46371481]
[1773156345814,0.4747108,87.859,87.82,0.46371481]
[1773156346014,0.4747108,87.887,87.851,0.46371481]
[1773156346407,11.85295786,87.887,87.853,0.46371481]
[1773156346605,10.66319058,87.88,87.853,0.46371481]
[1773156346809,0.49956061,87.886,87.86,10.66319058]
[1773156347325,0.49956061,87.886,87.852,11.38278013]
[1773156348204,0.49956061,87.886,87.853,0.4832882]
[1773156348405,0.49956061,87.886,87.86,10.66319058]
[1773156348919,0.49956061,87.884,87.854,11.382521]
[1773156349118,0.49956061,87.884,87.853,0.4832882]
[1773156349527,0.49956061,87.884,87.853,11.86582569]
[1773156350027,0.49956061,87.884,87.854,0.49593157]
[1773156351607,0.45928352,87.882,87.854,0.49593157]
[1773156351921,0.45928352,87.882,87.855,11.38239144]
[1773156354626,0.45928352,87.92,87.871,0.49593157]
[1773156354825,0.45928352,87.945,87.901,0.49593157]
[1773156355030,0.45928352,87.945,87.91,10.66319058]
[1773156355226,0.45928352,87.939,87.91,10.66319058]
[1773156355614,0.1,87.96,87.931,0.49593157]
[1773156355808,0.45928352,87.981,87.95,10.66319058]
[1773156356033,0.45928352,87.982,87.951,0.49593157]
[1773156356232,0.45928352,87.968,87.93,10.66319058]
[1773156356429,0.45928352,87.968,87.94,10.66319058]
[1773156356633,11.36789932,87.967,87.94,22.03457525]
[1773156356827,0.1,87.97,87.941,0.49593157]
[1773156357026,11.36764087,87.969,87.941,0.49593157]
[1773156357234,0.45928352,87.969,87.941,0.49593157]
[1773156357430,0.45928352,87.968,87.94,10.66319058]
[1773156357613,0.45928352,87.969,87.94,10.66319058]
[1773156357810,0.1,87.97,87.95,10.66319058]
[1773156358019,0.45928352,88.0,87.961,0.49593157]
[1773156358218,0.45928352,88.0,87.97,11.15912215]
[1773156358422,11.36344528,88.002,87.971,0.49593157]
[1773156358734,11.36195862,88.013,87.99,10.66319058]
[1773156359618,6.08560073,87.998,87.981,0.49593157]
[1773156359935,6.08560073,87.998,87.98,10.66319058]
[1773156360138,6.08560073,87.998,87.99,10.66319058]
[1773156360444,0.5,88.049,87.99,10.66319058]
[1773156360670,0.5,88.049,87.982,3.69383402]
[1773156360671,0.1,88.05,88.04,10.66319058]
[1773156360935,0.6,88.05,88.03,10.66319058]
[1773156361140,0.5,88.049,87.983,39.78041211]
[1773156361443,0.5,88.049,87.961,35.88978545]
[1773156361444,0.5,88.019,87.97,10.66319058]
[1773156361662,0.5,87.999,87.961,35.88978545]
[1773156361941,0.5,87.989,87.961,47.25834153]
[1773156362143,0.5,87.989,87.961,35.88978545]
[1773156362315,3.69383402,88.017,87.961,35.88978545]
[1773156362316,0.5,87.979,87.961,35.88978545]
[1773156362836,0.5,87.969,87.913,1.13748819]
[1773156363020,0.5,87.949,87.914,11.37471424]
[1773156363545,0.5,87.939,87.904,11.37599962]
[1773156363721,0.5,87.929,87.901,24.6704331]
[1773156363920,0.5,87.909,87.87,10.66319058]
[1773156364441,0.5,87.909,87.88,10.66319058]
[1773156364630,0.74608645,87.949,87.868,11.38070742]
[1773156364631,0.5,87.899,87.868,11.38070742]
[1773156364816,0.5,87.899,87.862,11.38141304]
[1773156365215,0.5,87.889,87.85,10.66319058]
[1773156365521,0.5,87.879,87.851,11.38290969]
[1773156365738,39.81435136,87.908,87.817,11.3873168]
[1773156365739,0.5,87.869,87.817,11.3873168]
[1773156365942,0.5,87.849,87.817,11.3873168]
[1773156366147,14.35489882,87.9,87.81,10.6610648]
[1773156366148,0.5,87.839,87.81,10.6610648]
[1773156366444,0.5,87.859,87.82,10.6610648]
[1773156366649,0.5,87.849,87.812,11.38796519]
[1773156366819,0.5,87.839,87.8,10.6610648]
[1773156367026,11.38329842,87.848,87.78,22.05318145]
[1773156367027,0.5,87.819,87.78,22.05318145]
[1773156367232,0.5,87.819,87.781,1.13919868]
[1773156367726,0.5,87.819,87.79,10.6610648]
[1773156367925,11.1610648,87.83,87.8,10.6610648]
[1773156368152,0.5,87.829,87.79,10.6610648]
[1773156368650,39.84154448,87.848,87.79,10.6610648]
[1773156368651,0.5,87.819,87.79,10.6610648]
[1773156368828,0.5,87.819,87.783,1.13917273]
[1773156369023,0.5,87.789,87.76,10.6610648]
[1773156369220,0.5,87.821,87.78,10.6610648]
[1773156369438,0.5,87.819,87.79,10.6610648]
[1773156369644,10.6610648,87.81,87.763,0.96231873]
[1773156369827,10.6610648,87.81,87.77,10.6610648]
[1773156369828,11.1610648,87.81,87.77,10.6610648]
[1773156370027,39.85424731,87.82,87.77,10.6610648]
[1773156370028,10.6610648,87.8,87.77,10.6610648]
[1773156370243,0.5,87.801,87.77,10.6610648]
[1773156370938,0.5,87.801,87.771,11.39328479]
[1773156371553,0.5,87.799,87.771,11.39328479]
[1773156371951,0.5,87.799,87.771,39.87649678]
[1773156372144,0.5,87.799,87.771,11.39328479]
[1773156372351,0.5,87.789,87.75,10.6610648]
[1773156372649,11.38952164,87.8,87.75,10.6610648]
[1773156372650,10.6610648,87.78,87.75,10.6610648]
[1773156372832,10.6610648,87.78,87.727,11.39899916]
[1773156372833,11.39224643,87.779,87.742,0.96372884]
[1773156373034,10.6610648,87.77,87.738,11.3975356]
[1773156373425,10.6610648,87.79,87.75,10.6610648]
[1773156373629,10.6610648,87.79,87.738,40.38739226]
[1773156373630,10.6610648,87.78,87.74,10.6610648]
[1773156374146,10.6610648,87.77,87.732,11.39826364]
[1773156374529,0.45928352,87.77,87.74,10.6610648]
[1773156375329,0.45928352,87.77,87.741,11.39718033]
[1773156375732,0.45928352,87.769,87.741,11.39718033]
[1773156375940,0.45928352,87.759,87.73,10.6610648]
[1773156376542,0.45928352,87.769,87.73,10.6610648]
[1773156377353,0.45928352,87.759,87.73,10.6610648]
[1773156377554,0.45928352,87.749,87.713,0.96416948]
[1773156377741,0.45928352,87.749,87.714,11.4006886]
[1773156378046,0.45928352,87.739,87.714,11.4006886]
[1773156378280,0.45928352,87.756,87.72,10.6610648]
[1773156378946,10.6610648,87.76,87.72,10.6610648]
[1773156379256,10.6610648,87.77,87.74,10.6610648]
[1773156379455,10.6610648,87.77,87.741,11.39718033]
[1773156379660,0.49931296,87.784,87.75,10.6610648]
[1773156379848,0.49931296,87.798,87.76,10.6610648]
[1773156380351,0.49931296,87.789,87.751,0.96336745]
[1773156380550,0.49931296,87.789,87.711,45.60423228]
[1773156380551,0.49931296,87.769,87.735,11.3979538]
[1773156381452,0.49931296,87.759,87.725,11.39925904]
[1773156381630,0.49931296,87.771,87.74,10.6610648]
[1773156382243,0.49931296,87.771,87.726,0.96443198]
[1773156382244,0.49931296,87.769,87.73,10.6610648]
[1773156382439,0.49931296,87.769,87.726,0.96443198]
[1773156382440,0.49931296,87.769,87.74,10.6610648]
[1773156383246,0.49931296,87.769,87.73,10.6610648]
[1773156383856,10.6610648,87.77,87.73,10.6610648]
[1773156383857,0.49931296,87.767,87.731,11.39847944]
[1773156384662,0.49931296,87.759,87.731,11.39847944]
[1773156389791,0.49931296,87.749,87.71,10.6610648]
[1773156390075,0.49931296,87.749,87.72,10.6610648]
[1773156390257,0.49931296,87.749,87.721,11.39977884]
[1773156390659,0.49931296,87.782,87.741,0.49310309]
[1773156390877,0.49931296,87.782,87.75,10.6610648]
[1773156391171,10.6610648,87.76,87.73,10.6610648]
[1773156391364,0.49931296,87.759,87.721,11.39977884]
[1773156391751,0.49931296,87.749,87.716,11.40032305]
[1773156392253,0.49931296,87.729,87.691,11.40367808]
[1773156392452,0.49931296,87.729,87.692,0.49310309]
[1773156393360,0.49931296,87.729,87.7,10.6610648]
[1773156394260,0.49931296,87.727,87.693,11.40341874]
[1773156394462,0.49931296,87.709,87.69,0.2]
[1773156394971,0.49931296,87.709,87.691,11.40367882]
[1773156395172,10.6610648,87.73,87.7,10.6610648]
[1773156395369,11.398075,87.735,87.7,11.15416789]
[1773156395673,10.6610648,87.74,87.7,11.15416789]
[1773156395867,11.39744013,87.739,87.7,11.15416789]
[1773156396375,10.6610648,87.76,87.721,0.49310309]
[1773156396567,10.6610648,87.76,87.73,10.6610648]
[1773156396959,11.39367423,87.768,87.73,10.6610648]
[1773156397161,0.49931296,87.767,87.73,10.6610648]
[1773156397357,0.49931296,87.767,87.702,43.60170384]
[1773156397358,11.39224643,87.779,87.74,10.6610648]
[1773156397559,0.49931296,87.778,87.741,0.49310309]
[1773156397888,0.49931296,87.808,87.771,0.49310309]
[1773156398177,13.56824505,87.809,87.77,10.6610648]
[1773156398178,0.49931296,87.799,87.77,10.6610648]
[1773156398374,0.49931296,87.799,87.772,11.39315499]
[1773156398554,11.38978108,87.798,87.772,11.39315499]
[1773156398755,11.38978108,87.798,87.77,10.6610648]
[1773156398984,10.6610648,87.78,87.744,0.49310309]
[1773156399159,0.49931296,87.779,87.741,11.39718033]
[1773156399361,10.6610648,87.77,87.735,11.39786148]
[1773156399670,10.6610648,87.76,87.723,0.49310309]
[1773156399858,0.49931296,87.769,87.73,10.6610648]
[1773156400061,0.49931296,87.759,87.731,0.49310309]
[1773156400485,0.49931296,87.759,87.732,11.39834951]
[1773156400818,11.16037776,87.77,87.733,0.49310309]
[1773156400962,0.49931296,87.779,87.75,10.6610648]
[1773156401277,0.49931296,87.779,87.741,0.49310309]
[1773156401657,0.49931296,87.778,87.741,0.49310309]
[1773156402772,0.49931296,87.776,87.742,11.39705044]
[1773156402983,10.6610648,87.76,87.733,0.96388719]
[1773156403285,0.49931296,87.759,87.73,10.6610648]
[1773156403779,0.49931296,87.759,87.723,0.49310309]
[1773156403980,0.49931296,87.749,87.72,10.6610648]
[1773156404787,10.6610648,87.76,87.721,11.39977884]
[1773156404788,0.49931296,87.747,87.721,11.39977884]
[1773156406887,28.48696568,87.76,87.721,0.47884985]
[1773156406888,11.39554299,87.754,87.721,0.47884985]
[1773156407386,11.88027074,87.757,87.721,0.47884985]
[1773156407576,0.48505695,87.756,87.721,0.47884985]
[1773156408186,0.48505695,87.756,87.73,10.6610648]
[1773156408376,11.87992669,87.759,87.729,0.47884985]
[1773156408690,0.48505695,87.758,87.72,10.6610648]
[1773156408894,10.6610648,87.73,87.69,10.8610648]
[1773156409191,0.48505695,87.709,87.69,0.2]
[1773156409366,0.49084727,87.699,87.667,0.49178491]
[1773156409573,0.49084727,87.699,87.67,10.6610648]
[1773156409764,85.48080099,87.739,87.669,11.40654051]
[1773156409765,0.49084727,87.729,87.691,0.49178491]
[1773156409965,10.6610648,87.71,87.681,0.49178491]
[1773156410369,0.49084727,87.713,87.681,0.49178491]
[1773156410968,0.49084727,87.713,87.682,11.40484934]
[1773156411177,0.49084727,87.713,87.683,0.49178491]
[1773156412384,11.89170601,87.713,87.683,0.49178491]
[1773156412787,0.49084727,87.713,87.683,0.49178491]
[1773156412987,0.49084727,87.713,87.684,11.4045892]
[1773156413673,0.49084727,87.699,87.673,0.96570825]
[1773156413874,0.49084727,87.699,87.67,0.49178491]
[1773156413875,0.49084727,87.699,87.674,11.40589]
[1773156414589,0.49084727,87.709,87.674,11.40589]
[1773156415177,11.4014685,87.708,87.674,11.40589]
[1773156415381,0.49084727,87.707,87.674,11.40589]
[1773156416081,0.49084727,87.707,87.675,0.49178491]
[1773156416896,0.49084727,87.709,87.675,0.49178491]
[1773156417294,0.49084727,87.707,87.676,11.40562981]
[1773156417491,0.49084727,87.699,87.676,11.40562981]
[1773156418090,0.49084727,87.699,87.666,0.49178491]
[1773156418282,11.89231577,87.708,87.671,0.49178491]
[1773156418689,0.49084727,87.707,87.671,0.49178491]
[1773156419697,0.49084727,87.707,87.673,0.49178491]
[1773156420202,11.89257577,87.706,87.673,0.49178491]
[1773156420696,1.42468001,87.739,87.672,39.92152568]
[1773156420697,0.49084727,87.725,87.691,0.49178491]
[1773156420886,0.49084727,87.734,87.701,0.49178491]
[1773156421086,0.49084727,87.709,87.672,11.8979351]